Cogmind - Beta 9.6 @@@ ROGUE MODE // 2020.08.08 @ 22:55:36 Player: Skitgris Result: Destroyed by Y-45 Defender with Heavy Assault Rifle Performance ------------- Evolutions (2) 1000 Regions Visited (5) 1000 Robots Destroyed (23) 115 Value Destroyed (794) 794 Prototype IDs (1) 20 Alien Tech Used (0) 0 Bonus (65) 65 TOTAL SCORE: 2994 Bonus ------- Follower Combat Kills 85 Friendly Fire -20 Cogmind --------- Core Integrity 0/550 Matter 245/300 Energy 100/100 System Corruption 0% Temperature Cool (9) Movement Core (100) Ox1 Location -8/Materials Parts ------- > --- POWER (1) -------- (None) > --- PROPULSION (4) --- (None) > --- UTILITY (4) ------ Small Storage Unit Signal Interpreter > --- WEAPON (2) ------- (None) > --- INVENTORY (6) ---- Visual Processing Unit Peak State ------------ > --- POWER ------------ Light Nuclear Core > --- PROPULSION ------- Light Treads Aluminum Leg Aluminum Leg > --- UTILITY ---------- Small Storage Unit Small Storage Unit Improved Sensor Array Signal Interpreter > --- WEAPON ----------- Particle Gun Heavy Particle Gun > --- INVENTORY -------- Improved Ion Engine Visual Processing Unit Improved Sensor Array Hardlight Generator Medium Laser Particle Gun Autogun [Rating: 18] Favorites ----------- Power Ion Engine Engine Ion Engine Power Core Light Nuclear Core Propulsion Aluminum Leg Treads Light Treads Leg Aluminum Leg Wheel Wheel Utility Small Storage Unit Device Improved Sensor Array Storage Small Storage Unit Processor Signal Interpreter Weapon Assault Rifle Energy Gun Heavy Particle Gun Ballistic Gun Assault Rifle Launcher Mini Grenade Launcher Build | -11 -10 -10 -10 -9 -8 ------- Run | Scr Mat Min Exi Min Mat Slots Evolved 4 | . . . . . 4 Power . | . . . . . . Propulsion 2 | . . . . . 2 Utility 2 | . . . . . 2 Weapon . | . . . . . . Parts Attached 37 | 8 4 2 . 1 22 Power 4 | 1 . . . . 3 Engine 3 | 1 . . . . 2 Core 1 | . . . . . 1 Reactor . | . . . . . . Propulsion 10 | 2 . 2 . 1 5 Treads 1 | . . . . . 1 Leg 5 | . . 2 . 1 2 Wheel 4 | 2 . . . . 2 Hover . | . . . . . . Flight . | . . . . . . Utility 9 | 3 2 . . . 4 Device 5 | 1 1 . . . 3 Storage 3 | 2 1 . . . . Processor 1 | . . . . . 1 Hackware . | . . . . . . Protection . | . . . . . . Artifact . | . . . . . . Weapon 14 | 2 2 . . . 10 Energy Gun 6 | . . . . . 6 Energy Cannon . | . . . . . . Ballistic Gun 6 | 2 2 . . . 2 Ballistic Cannon . | . . . . . . Launcher 2 | . . . . . 2 Special Weapon . | . . . . . . Impact Weapon . | . . . . . . Slashing Weapon . | . . . . . . Piercing Weapon . | . . . . . . Special Melee Weapon . | . . . . . . Unidentified Prototypes 1 | . . . . . 1 Parts Lost 22 | . . 2 . . 20 Power 3 | . . . . . 3 Propulsion 9 | . . 2 . . 7 Utility 4 | . . . . . 4 Weapon 6 | . . . . . 6 Highest Loss Streak 12 | . . 2 . . 12 Average Slot Usage (%) 89 | . 100 94 100 100 80 Engine 9 | . 14 14 14 14 5 Treads 2 | . . . . . 4 Leg 19 | . . 22 28 28 17 Wheel 4 | . 28 . . . 2 Device 5 | . 9 . . . 7 Storage 21 | . 18 28 28 28 16 Processor 4 | . . . . . 9 Energy Gun 2 | . . . . . 5 Ballistic Gun 17 | . 28 28 28 28 7 Naked Turns . | . . . . . . Heaviest Build 20 | 16 18 18 18 18 20 Greatest Support 30 | 20 20 20 20 20 30 Greatest Overweight (x) 3 | . . . . 1 3 Average Overweight (x) . | . . . . . . Largest Inventory Capacity 8 | 8 8 8 8 8 8 Average Capacity 7 | 6 6 8 8 8 7 Most Carried 8 | 6 8 8 7 8 8 Average Carried 6 | 3 6 7 7 7 5 Final Capacity 8 | 6 8 8 8 8 6 Final Carried 8 | 6 8 7 7 8 1 Class Distribution -------------------- 70% | Mutant 29% | Scavenger-Mutant Dominant Class ---------------- Mutant | -10/Materials Mutant | -10/Mines Mutant | -10/Exiles Mutant | -9/Mines Scavenger-Mutant | -8/Materials Resources | -11 -10 -10 -10 -9 -8 ----------- Run | Scr Mat Min Exi Min Mat Matter Collected 788 | 329 46 34 . 61 318 Remotely . | . . . . . . Salvage Created 946 | 111 46 66 . 49 674 Parts 54 | 9 6 5 . 3 31 Haulers Intercepted . | . . . . . . Recyclers Shooed 1 | 1 . . . . . Parts Field Recycled . | . . . . . . Retrieved Matter . | . . . . . . Parts Self-Destructed . | . . . . . . Prevented . | . . . . . . Kills | -11 -10 -10 -10 -9 -8 ------- Run | Scr Mat Min Exi Min Mat Combat Hostiles Destroyed 15 | . 1 2 . 1 11 Guns 11 | . 1 1 . 1 8 AOE 4 | . . 1 . . 3 Classes Destroyed 6 | 2 2 . . . 2 Builder 1 | . . . . . 1 Tunneler 3 | 3 . . . . . Recycler 3 | 1 . . . . 2 Watcher 1 | . 1 . . . . Grunt 13 | . 1 2 . 1 9 Sentry 2 | . . . . . 2 Best Kill Streak 5 | 3 2 2 . 1 5 Combat Bots Only 3 | . 1 2 . 1 3 Max Kills in Single Turn 2 | 1 1 1 . 1 2 Gunslinging . | . . . . . . Exploded 1 | . . 1 . . 1 Melee . | . . . . . . Uniques/NPCs Destroyed . | . . . . . . Combat | -11 -10 -10 -10 -9 -8 -------- Run | Scr Mat Min Exi Min Mat Damage Taken 2403 | . 32 152 . 47 2172 Core 574 | . . 16 . . 558 Absorbed by Shields . | . . . . . . Core Remaining (%) 96 | 100 . . . 93 . Volleys Fired 84 | 15 5 2 . 3 59 Largest 2 | 2 2 2 . 2 2 Hottest 115 | 40 43 43 . 43 115 Shots Fired 136 | 30 10 4 . 6 86 Gun 130 | 30 10 4 . 6 80 Cannon . | . . . . . . Launcher 6 | . . . . . 6 Special . | . . . . . . Kinetic 94 | 30 10 4 . 6 44 Thermal 36 | . . . . . 36 Explosive 6 | . . . . . 6 Electromagnetic . | . . . . . . Robot Hit Streak 10 | 3 2 2 . 4 10 Robot Miss Streak 4 | 3 1 2 . 1 4 Penetration Max . | . . . . . . Secondary Targets . | . . . . . . Shots Hit Robots 80 | 12 5 2 . 4 57 Core Hits 46 | 6 3 3 . 2 32 Critical Hits 1 | . . . . . 1 Critical Kills 1 | . . . . . 1 Critical Parts Destroyed . | . . . . . . Melee Attacks . | . . . . . . Impact . | . . . . . . Slashing . | . . . . . . Piercing . | . . . . . . Sneak Attacks . | . . . . . . Combat Hostiles . | . . . . . . Follow-up Attacks . | . . . . . . Damage Inflicted 1605 | 131 63 121 . 60 1230 Guns 1194 | 131 63 30 . 60 910 Cannons . | . . . . . . Explosions 411 | . . 91 . . 320 Melee . | . . . . . . Ramming . | . . . . . . Kinetic 723 | 131 63 30 . 60 439 Thermal 562 | . . 91 . . 471 Explosive 320 | . . . . . 320 Electromagnetic . | . . . . . . Impact . | . . . . . . Slashing . | . . . . . . Piercing . | . . . . . . Highest Corruption . | . . . . . . Average Corruption . | . . . . . . Corruption Purged . | . . . . . . Overload Shots . | . . . . . . Overflow Damage 25 | . . 22 . . 3 Projectiles . | . . . . . . Explosions 25 | . . 22 . . 3 Melee . | . . . . . . Knockbacks . | . . . . . . Impact . | . . . . . . Kinetic . | . . . . . . Secondary . | . . . . . . Self-Inflicted Damage 279 | . . 118 . . 161 Shots 7 | . . 3 . . 4 Rammed . | . . . . . . Targets Rammed . | . . . . . . Kicked . | . . . . . . Crushed . | . . . . . . Highest Temperature 205 | . 16 56 . 11 205 Average Temperature 73 | . 5 38 . 6 84 Received Heat Transfer 990 | . 18 18 . 27 927 Siege Activations . | . . . . . . Robots Corrupted . | . . . . . . Combat Hostiles . | . . . . . . Parts Fried . | . . . . . . Impact Corruptions . | . . . . . . Robots Melted . | . . . . . . Combat Hostiles . | . . . . . . Parts Melted 2 | . . 1 . . 1 Heat Transferred 1075 | . . 150 . . 925 Parts Sabotaged . | . . . . . . Parts Stolen . | . . . . . . Parts Stripped . | . . . . . . Power Chain Reactions . | . . . . . . Missiles Intercepted . | . . . . . . Alert | -11 -10 -10 -10 -9 -8 ------- Run | Scr Mat Min Exi Min Mat Peak Influence 144 | 20 55 141 . 78 144 Average Influence 56 | 5 26 136 . 31 83 Maximum Alert Level . | . . . . . . Low Security (%) 100 | 100 100 100 . 100 100 Level 1 . | . . . . . . Level 2 . | . . . . . . Level 3 . | . . . . . . Level 4 . | . . . . . . Level 5 . | . . . . . . High Security . | . . . . . . Max Security . | . . . . . . Squads Dispatched . | . . . . . . Investigation . | . . . . . . Extermination . | . . . . . . Reinforcement . | . . . . . . Assault . | . . . . . . Garrison . | . . . . . . Intercept . | . . . . . . Construction Impeded . | . . . . . . Haulers Reinforced . | . . . . . . Stealth | -11 -10 -10 -10 -9 -8 --------- Run | Scr Mat Min Exi Min Mat Distress Signals 2 | . . . . . 2 Communications Jammed . | . . . . . . Distress Signals . | . . . . . . Times Spotted 28 | . 3 2 . 3 20 Peak Tracking Total 7 | . 2 2 . 3 7 Tactical Retreats 2 | . 1 . . . 1 Traps | -11 -10 -10 -10 -9 -8 ------- Run | Scr Mat Min Exi Min Mat Traps Triggered 1 | . . . . . 1 Indirectly . | . . . . . . Trap Hack Attempts . | . . . . . . Triggered . | . . . . . . Disarmed . | . . . . . . Reprogrammed . | . . . . . . Reused . | . . . . . . Traps Extracted . | . . . . . . Installed . | . . . . . . Triggered . | . . . . . . Machines | -11 -10 -10 -10 -9 -8 ---------- Run | Scr Mat Min Exi Min Mat Machines Disabled 5 | . . 5 . . . Max in Single Turn 5 | . . 5 . . . Machines Sabotaged . | . . . . . . Garrisons Compromised . | . . . . . . Overloaded Fab Kills . | . . . . . . Fab Network Shutdowns . | . . . . . . Hacking | -11 -10 -10 -10 -9 -8 --------- Run | Scr Mat Min Exi Min Mat Machines Accessed . | . . . . . . Terminals . | . . . . . . Fabricators . | . . . . . . Repair Stations . | . . . . . . Recycling Units . | . . . . . . Scanalyzers . | . . . . . . Garrison Access . | . . . . . . Total Hacks . | . . . . . . Successful . | . . . . . . Failed . | . . . . . . Catastrophic . | . . . . . . Database Lockouts . | . . . . . . Manual . | . . . . . . Terminals . | . . . . . . Fabricators . | . . . . . . Repair Stations . | . . . . . . Recycling Units . | . . . . . . Scanalyzers . | . . . . . . Garrison Access . | . . . . . . Terminal Hacks . | . . . . . . Fabricator Hacks . | . . . . . . Repair Station Hacks . | . . . . . . Recycling Unit Hacks . | . . . . . . Scanalyzer . | . . . . . . Garrison Access Hacks . | . . . . . . Unauthorized Hacks . | . . . . . . Terminals . | . . . . . . Fabricators . | . . . . . . Repair Stations . | . . . . . . Recycling Units . | . . . . . . Scanalyzers . | . . . . . . Garrison Access . | . . . . . . Data Cores Recovered . | . . . . . . Used . | . . . . . . Hacking Detections . | . . . . . . Full Trace Events . | . . . . . . Feedback Events . | . . . . . . Feedback Blocked . | . . . . . . Robot Schematics Acquired . | . . . . . . Robots Built . | . . . . . . Matter . | . . . . . . Time . | . . . . . . Total Robot Build Rating . | . . . . . . Part Schematics Acquired . | . . . . . . Parts Built . | . . . . . . Matter . | . . . . . . Time . | . . . . . . Total Part Build Rating . | . . . . . . Parts Repaired . | . . . . . . Time . | . . . . . . Parts Recycled . | . . . . . . Recycled Matter . | . . . . . . Retrieved Matter . | . . . . . . Retrieved Components . | . . . . . . Parts Scanalyzed . | . . . . . . Part Schematics Acquired . | . . . . . . Parts Damaged . | . . . . . . Bothacking | -11 -10 -10 -10 -9 -8 ------------ Run | Scr Mat Min Exi Min Mat Used RIF Installer . | . . . . . . Robots Hacked . | . . . . . . Non-combat . | . . . . . . Combat . | . . . . . . Robot Hacks Applied . | . . . . . . Relay Couplers Released . | . . . . . . Robots Rewired . | . . . . . . Allies Hacked . | . . . . . . Hacks Repelled . | . . . . . . Allies | -11 -10 -10 -10 -9 -8 -------- Run | Scr Mat Min Exi Min Mat Total Allies 2 | . . . . 2 . Largest Group 2 | . . . . 2 2 Highest-Rated Group 38 | . . . . 38 38 Highest-Rated Ally 31 | . . . . 31 31 Total Orders . | . . . . . . Ally Attacks 10 | . . . . 5 5 Total Damage 188 | . . . . 104 84 Kills 3 | . . . . 2 1 Allies Corrupted . | . . . . . . Allies Melted . | . . . . . . Intel | -11 -10 -10 -10 -9 -8 ------- Run | Scr Mat Min Exi Min Mat Robot Analysis Total . | . . . . . . Derelict Logs Recovered 2 | . . . . 2 . Drone Launches . | . . . . . . Drone Recoveries . | . . . . . . Exploration | -11 -10 -10 -10 -9 -8 ------------- Run | Scr Mat Min Exi Min Mat Turns Passed 1487 | 156 158 51 57 393 672 Spaces Moved 876 | 117 58 36 48 299 318 Core 10 | 4 . . . . 6 Treads . | . . . . . . Legs 640 | . . 35 48 299 258 Wheels 226 | 113 58 1 . . 54 Hover . | . . . . . . Flight . | . . . . . . Fastest Speed 50 | 50 80 80 120 120 80 Average Speed 109 | 78 80 118 120 120 113 Slowest Speed 200 | 80 80 120 120 150 200 Overloaded Moves . | . . . . . . Propulsion Burnouts . | . . . . . . Robots Hopped . | . . . . . . Cave-ins Triggered . | . . . . . . Exploration Rate (%) 21 | 7 13 10 9 70 19 Regions Visited 5 Branch Regions 3 Pre-discovered Areas 1 | . . . . 1 . Known Exits Taken . | . . . . . . Unknown Exits Taken 5 | 1 1 1 1 1 . Scrap Searched 3 | . . 1 . 2 . Spaces Dug . | . . . . . . Terrain Destroyed 87 | . . 30 . . 57 Melee . | . . . . . . Projectile . | . . . . . . AOE 87 | . . 30 . . 57 Actions | -11 -10 -10 -10 -9 -8 --------- Run | Scr Mat Min Exi Min Mat Total 1272 | 153 161 40 47 327 544 Wait 239 | . 86 . . 23 130 Move 871 | 116 57 35 47 298 318 Hop . | . . . . . . Pick Up 29 | 13 4 1 . 1 10 Fast Attach 6 | . 2 . . 1 3 Attach 24 | 8 . 2 . . 14 Detach 1 | 1 . . . . . Swap 7 | . 2 . . . 5 Drop 11 | . 5 . . 1 5 Fire 84 | 15 5 2 . 3 59 Melee . | . . . . . . Ram . | . . . . . . Kick . | . . . . . . Crush . | . . . . . . Escape Stasis . | . . . . . . Rewire . | . . . . . . Trap . | . . . . . . Miscellaneous . | . . . . . . Route ------- -11/Scrapyard -10/Materials -10/Mines -10/Exiles -9/Mines -8/Materials History --------- Turn | Location | Event 2 | -11/Scrapyard | Met Revision 17 11 | -11/Scrapyard | Discovered new exit (range 16) 157 | -11/Scrapyard | Entered Materials 303 | -10/Materials | Build established: Mutant 307 | -10/Materials | Discovered new exit (range 9) 315 | -10/Materials | Entered Mines 360 | -10/Mines | Deemed a non-threat by the Exiles lab entrance 360 | -10/Mines | Discovered new exit (range 5) 366 | -10/Mines | Entered Exiles 366 | -10/Exiles | Found Exiles lab abandoned 406 | -10/Exiles | Discovered new exit (range 15) 423 | -10/Exiles | Entered Mines 570 | -9/Mines | Learned location of Zion (-7) 727 | -9/Mines | Learned Materials terminal intel 795 | -9/Mines | Discovered new exit (range 3) 816 | -9/Mines | Entered Materials 816 | -8/Materials | Accompanied by 2 allies 816 | -8/Materials | Evolved 4 slots: Propulsion x2, Utility x2 817 | -8/Materials | Loaded intel: 12 terminal locations 821 | -8/Materials | Led the pair of lost Derelicts to an unsafe place 1274 | -8/Materials | Build established: Scavenger-Mutant 1336 | -8/Materials | Core integrity fell below 50% 1374 | -8/Materials | Lost 12 parts (2p3n2u5w) 1477 | -8/Materials | Core integrity fell below 20% 1488 | -8/Materials | Destroyed by Y-45 Defender with Heavy Assault Rifle Last Messages --------------- 01405_ The unstable cave ceiling collapses. 01405_ U-05 Engineer lays Concrete. 01407_ Sml. Storage Unit destroyed. 01407_ Destroyed Sml. Storage Unit. 01407_ Mni. Grenade Launcher destroyed. 01407_ Destroyed Mni. Grenade Launcher. 01407_ U-05 Engineer lays Concrete. 01408_ U-05 Engineer builds a Wall. 01410_ U-05 Engineer lays Concrete. 01412_ U-05 Engineer builds a Wall. 01412_ U-05 Engineer lays Concrete. 01413_ U-05 Engineer builds a Wall. 01415_ U-05 Engineer lays Concrete. 01416_ U-05 Engineer builds a Wall. 01421_ R-06 Scavenger collects Aluminum Leg. 01439_ Wheel destroyed. 01445_ Lgt. Ion Engine destroyed. 01451_ Aluminum Leg destroyed. 01467_ Hardlight Generator destroyed. 01479_ Wheel destroyed. Map ----- +----------------------------------------------------+ | ?????????????????????????????????????????????????? | | ?????????????????????????????????????????????????? | | ?????????????????????????????????????????????????? | | ?????????????????????????????????????????????????? | | ?????????????????????????????????????????????????? | | ?????????????????????????????????????????????????? | | ????????????T????????????????????????????????????? | | ?????????????????????????????????????????????????? | | ?????????????????????????????????????????????????? | | ?????????????????????????????????????????????????? | | ?????????????????????????????????????????????????? | | ?????????????????????????????????????????????????? | | ?????????????????????????????????????????????????? | | ?????????????????????????????????????????????????? | | ??????????????????????????????????""?????????????? | | ??????????????????????????????????""?????????????? | | ??????????????????????????????????T"?????????????? | | ??????????????????????????????????""?????????????? | | ??????????????????????????????????""?????????????? | | ??????????? ?????????????????????????????????????? | | ??????????? ?????????????????????????????????????? | | ??????????? ?????????????????????????????????????? | | ??????????? ?????????????########????????????????? | | ??????????? ????????###??# #????????????????? | | ??????????# #??????####### #????????????????? | | ??????????# #?????### gYY@ """ #????????????????? | | ??????????# #???### # #### """ #????????????????? | | ??????????# #??###### # ## """ #????????????????? | | ??????????# #??## # ## #????????????????? | | ??????????# #??## % ########????????????????? | | ??????????# ##### # #?????????????????? | | ??????????# % ## T #?????????????????? | | ??###+##### "" #?????????????????? | | ### % %#### #?????????????????? | | ######+## #?????????????????? | | #?## # #### ###?????????????????? | | """"" #?## """ ###??# #???????????????????? | | ??"""" #?## "Y" ##???# #####+##????????????? | | ??"""" ### #?## " " #????# ?????? | | ??# #??# #????####### #??????????? | | ???# #??# #??????????????????????????? | | #####+????# #??########??????????????????????????? | | ??????????# #????????????????????????????????????? | | ??????????# #????????????????????????????????????? | | ??????????# #???????????????????????""???????????? | | ??????????# #???????????????????????"T???????????? | | ??????????# #???????????????????????""???????????? | | ??????????# #????????????????????????????????????? | | ??????????# #????????????????????????????????????? | | ??????????# #????????????????????????????????????? | +----------------------------------------------------+ Best States ------------- Heat Dissipation 31 Energy Generation 14 Energy Capacity 265 Matter Stores 300 Matter Capacity 300 Sight Range 16 Robot Scan Range 13 Terrain Scan Range 16 Terrain Scan Density 10 Evasion (%) 44 Item Schematics ----------------- None Robot Schematics ------------------ None Fabricated ------------ Nothing Alien Tech Used ----------------- None Achievements -------------- Let's See Who's Tougher Challenges ------------ None Game ------ Seed NullFieldRegenerator Manual? 0 Play Time 00:23:51 Cumulative 12.7 hours Start 2020.08.08 @ 22:32:10 End 2020.08.08 @ 22:55:36 Sessions 1 Manual Loads 0 Difficulty Rogue Special Mode None Game No. 20 Rogue 11 Adventurer 9 Explorer 0 Win Type - Total 0 Types 0/0/0/0/0/0/0 Lore% 5 Gallery% 19 Achievement% 14 Wizard Run 0 Options --------- ASCII 0 Keyboard 0 Movement Mouse Keybinds 0 Fullscreen 2 Font 36/X11 Map View 76x50 Tactical HUD 1 Map Filters NONE Filters NONE Steam 1 RUN: 61ae0b5c-c852-4a7d-bd9e-93a5f844669a